bitfinex-derivatives/quotes_SOLF0:USTF0_20251210
["timestamp","ask_amount","ask_price","bid_price","bid_amount"]
[1765408474838,0.0528635,137.32,137.3,3.12]
[1765408476546,3.1,137.29,137.23,3.12]
[1765408476745,5.18429991,137.27,137.23,3.12]
[1765408477540,0.05343827,137.26,137.25,3.12]
[1765408480443,5.23773818,137.26,137.24,0.04641402]
[1765408480654,3.1,137.25,137.24,0.04641402]
[1765408486858,0.05343827,137.26,137.24,3.16641402]
[1765408487959,0.05343827,137.26,137.24,9.72281402]
[1765408488148,0.05343827,137.26,137.25,3.12]
[1765408488550,0.05343827,137.26,137.24,0.04641402]
[1765408488852,3.15343827,137.26,137.24,0.04641402]
[1765408489753,3.1,137.25,137.18,3.12]
[1765408489946,2.08429991,137.24,137.18,3.12]
[1765408490555,2.08429991,137.26,137.2,3.12]
[1765408490863,0.04638421,137.24,137.22,3.17017724]
[1765408491852,3.14638421,137.24,137.22,0.05017724]
[1765408492461,0.04638421,137.24,137.22,3.17017724]
[1765408492647,11.78738412,137.24,137.22,0.05017724]
[1765408495463,9.70308421,137.24,137.22,0.05017724]
[1765408495661,11.78738412,137.24,137.22,0.05017724]
[1765408496265,3.1,137.23,137.22,0.05017724]
[1765408496558,3.1,137.22,137.19,3.12]
[1765408496863,3.1,137.21,137.16,3.12]
[1765408497459,0.05425617,137.2,137.18,3.12]
[1765408498569,0.05425617,137.2,137.18,9.6794]
[1765408498969,5.18429991,137.26,137.2,9.6783]
[1765408499662,6.5562,137.25,137.21,6.558]
[1765408499864,0.0499627,137.24,137.22,3.16741276]
[1765408500263,5.18429991,137.3,137.26,3.12]
[1765408500668,3.1,137.29,137.26,3.12]
[1765408501058,163.8689,137.33,137.27,3.12]
[1765408501059,5.18429991,137.32,137.27,3.12]
[1765408501260,3.1,137.3,137.28,0.05378991]
[1765408502064,0.04587674,137.31,137.28,3.17378991]
[1765408502661,3.14587674,137.31,137.28,0.05378991]
[1765408503060,9.69927674,137.31,137.28,0.05378991]
[1765408503458,5.18429991,137.3,137.28,0.05378991]
[1765408503665,11.73809991,137.3,137.28,0.05378991]
[1765408506676,9.6538,137.3,137.28,0.05378991]
[1765408508175,3.21,137.29,137.28,0.05378991]
[1765408509269,6.5538,137.3,137.28,3.26378991]
[1765408509775,9.7638,137.3,137.28,0.05378991]
[1765408510165,0.04587674,137.31,137.28,3.26378991]
[1765408511767,0.04587674,137.31,137.29,3.03]
[1765408512876,0.04587674,137.31,137.29,9.5842]
[1765408513079,3.35,137.3,137.24,3.03]
[1765408513279,3.35,137.27,137.2,3.03]
[1765408513472,3.35,137.25,137.17,64.95]
[1765408513674,8.93528909,137.24,137.17,64.95]
[1765408513874,8.93528909,137.23,137.17,3.03]
[1765408514079,3.2672859,137.24,137.19,0.04612933]
[1765408514080,3.40536681,137.21,137.19,0.04612933]
[1765408514388,8.94030858,137.2,137.19,0.04612933]
[1765408518486,5.59030858,137.2,137.19,0.04612933]
[1765408518879,0.05536681,137.21,137.19,3.07612933]
[1765408519693,0.05536681,137.21,137.19,9.63502933]
[1765408519894,0.05536681,137.21,137.2,3.03]
[1765408520075,6.69445058,137.28,137.2,3.03]
[1765408520275,5.52415778,137.27,137.2,3.03]
[1765408520479,5.52415778,137.26,137.2,3.03]
[1765408520679,10.04445058,137.29,137.2,3.03]
[1765408520879,9.9054,137.27,137.23,3.03]
[1765408521181,5.57362656,137.26,137.24,0.04808064]
[1765408521382,0.04886592,137.26,137.24,0.04808064]
[1765408522387,3.39886592,137.26,137.24,0.04808064]
[1765408524088,0.04886592,137.26,137.24,3.07808064]
[1765408524586,3.39886592,137.26,137.24,0.04808064]
[1765408524779,0.04886592,137.26,137.24,3.07808064]
[1765408525008,5.49274243,137.29,137.24,3.07808064]
[1765408525188,3.35,137.34,137.27,3.03]
[1765408525484,3.35,137.32,137.26,3.03]
[1765408526071,0.05595234,137.3,137.28,3.08208591]
[1765408527087,3.40595234,137.3,137.23,3.03]
[1765408527288,6.5554,137.27,137.2,6.5583]
[1765408527582,3.35,137.25,137.17,3.03]
[1765408528289,3.40289499,137.22,137.2,0.04591246]
[1765408528586,0.05289499,137.22,137.2,0.04591246]
[1765408532089,0.05289499,137.22,137.2,6.60431246]
[1765408537798,0.05289499,137.22,137.21,3.23]
[1765408542295,3.1,137.33,137.24,3.23]
[1765408542493,5.48699249,137.35,137.28,3.23]
[1765408542699,3.1,137.36,137.28,3.23]
[1765408543298,0.05221597,137.33,137.31,0.04636707]
[1765408543604,0.05221597,137.33,137.32,3.23]
[1765408548006,3.1,137.39,137.32,3.23]
[1765408549008,0.0490375,137.37,137.34,0.05360539]
[1765408549909,0.0490375,137.37,137.34,9.83530539]
[1765408550501,3.1490375,137.37,137.34,0.05360539]
[1765408551100,9.6996375,137.37,137.34,0.05360539]
[1765408551413,3.1,137.36,137.34,0.05360539]
[1765408553106,3.1,137.35,137.34,0.05360539]
[1765408553511,3.1490375,137.37,137.34,0.05360539]
[1765408556103,9.6995375,137.37,137.34,0.05360539]
[1765408556410,3.1,137.36,137.34,0.05360539]
[1765408556599,3.1,137.34,137.3,3.23]
[1765408556800,105.0315,137.33,137.23,3.23]
[1765408557109,3.1,137.31,137.23,3.23]
[1765408557309,6.5544,137.29,137.24,6.5563]
[1765408557505,3.1,137.29,137.25,3.23]
[1765408557713,3.1,137.29,137.26,0.0534905]
[1765408557714,0.0549661,137.28,137.26,0.0534905]
[1765408560012,0.0549661,137.28,137.26,9.8390905]
[1765408560201,0.0549661,137.28,137.27,3.23]
[1765408560898,0.0549661,137.28,137.26,6.6090905]
[1765408561102,0.0549661,137.28,137.26,9.8390905]
[1765408561303,185.6448,137.35,137.26,9.8390905]
[1765408561304,3.1,137.35,137.3,3.23]
[1765408561500,3.1,137.33,137.26,3.23]
[1765408562299,0.04857777,137.31,137.28,3.284531]
[1765408562809,3.14857777,137.31,137.28,3.284531]
[1765408563009,3.14857777,137.31,137.28,9.838931]
[1765408563610,3.14857777,137.31,137.28,0.054531]
[1765408564207,3.11,137.29,137.24,3.23]
[1765408565317,0.05525724,137.28,137.25,3.13079101]
[1765408567220,3.16525724,137.28,137.25,0.05079101]
[1765408569517,9.72005724,137.28,137.25,0.05079101]
[1765408573420,3.34,137.26,137.25,0.05079101]
[1765408573625,3.34,137.26,137.19,6.25]
[1765408573813,3.34,137.26,137.19,3.25]
[1765408574523,3.39056752,137.24,137.21,0.05080533]
[1765408576029,9.8971,137.23,137.21,0.05080533]
[1765408577023,3.34,137.22,137.21,0.05080533]
[1765408577333,3.34,137.2,137.16,65.17]
[1765408578634,0.05322424,137.19,137.17,0.0507562]
[1765408580523,3.39322424,137.19,137.17,0.0507562]
[1765408580734,9.95232424,137.19,137.17,0.0507562]
[1765408580930,3.34,137.18,137.17,0.0507562]
[1765408581327,0.05322424,137.19,137.17,3.3007562]
[1765408583028,0.05322424,137.19,137.17,9.8605562]
[1765408583228,0.05322424,137.19,137.18,3.25]
[1765408588239,3.39322424,137.19,137.17,0.0507562]
[1765408588545,3.34,137.14,137.05,3.25]
[1765408588736,6.5635,137.1,137.05,3.25]
[1765408589044,3.34,137.1,137.05,3.25]
[1765408589339,0.04953968,137.09,137.06,3.29858079]
[1765408589541,3.34,137.16,137.08,3.25]
[1765408590739,0.05267782,137.13,137.11,0.04847682]
[1765408590944,3.39267782,137.13,137.11,0.04847682]
[1765408594054,3.34,137.11,137.05,6.25]
[1765408594347,3.34,137.11,137.05,3.25]
[1765408594945,0.05430291,137.09,137.07,3.1450615]
[1765408595946,0.05430291,137.09,137.07,9.7096615]
[1765408596539,0.05430291,137.09,137.08,3.09]
[1765408598951,3.16430291,137.09,137.07,0.0550615]
[1765408599143,0.05430291,137.09,137.07,0.0550615]
[1765408599546,0.05430291,137.09,137.07,3.1450615]
[1765408605455,3.16430291,137.09,137.07,0.0550615]
[1765408605856,0.05430291,137.09,137.07,3.1450615]
[1765408606952,0.05430291,137.09,137.08,3.09]
[1765408611352,3.16430291,137.09,137.07,0.0550615]
[1765408612473,3.11,137.04,136.99,6.61015491]
[1765408612659,2.10019928,137.0,136.99,3.52015491]
[1765408613061,5.21019928,137.0,136.99,3.52015491]
[1765408613264,2.10019928,137.0,136.99,3.52015491]
[1765408613561,0.05546841,137.01,136.99,6.61015491]
[1765408613764,0.05546841,137.01,136.99,13.17865491]
[1765408614262,0.05546841,137.01,136.99,13.17855491]
[1765408614968,0.05546841,137.01,137.0,3.09]
[1765408617458,3.11,137.04,137.0,3.09]
[1765408618259,0.04862723,137.03,137.01,0.05350322]
[1765408618765,0.04862723,137.03,137.01,3.14350322]
[1765408620867,0.04862723,137.03,137.01,9.71090322]
[1765408621068,0.04862723,137.03,137.02,3.09]
[1765408622168,3.11,137.08,137.01,0.05350322]
[1765408622359,3.11,137.11,137.04,3.09]
[1765408622870,9.6729,137.11,137.07,3.09]
[1765408623066,14.83378316,137.17,137.07,3.09]
[1765408623272,0.04597098,137.13,137.11,3.13873421]
[1765408623472,0.04597098,137.13,137.12,3.09]
[1765408625173,0.04597098,137.13,137.11,0.04873421]
[1765408625174,3.17597098,137.13,137.11,0.04873421]
[1765408625778,0.04597098,137.13,137.11,3.17873421]
[1765408626370,3.17597098,137.13,137.11,0.04873421]
[1765408626976,0.04597098,137.13,137.11,3.17873421]
[1765408628678,0.04597098,137.13,137.12,3.13]
[1765408629878,6.5599,137.18,137.14,3.14]
[1765408630174,9.8999,137.18,137.14,3.14]
[1765408630384,6.561,137.15,137.1,3.14]
[1765408631085,6.561,137.15,137.11,3.19136218]
[1765408631086,0.0531244,137.14,137.11,3.19136218]
[1765408632595,0.0531244,137.14,137.13,3.14]
[1765408633382,0.0531244,137.14,137.12,3.14]
[1765408634976,132.53773569,137.21,137.11,6.61416218]
[1765408634977,10.06517068,137.22,137.13,3.14]
[1765408635172,3.34,137.22,137.14,3.14]
[1765408636183,0.05541487,137.19,137.18,3.14]
[1765408637685,0.05541487,137.19,137.17,6.60970817]
[1765408637686,3.34,137.24,137.17,3.19000817]
[1765408638686,3.39254868,137.22,137.19,3.14]
[1765408638887,3.39254868,137.22,137.19,0.04887942]
[1765408639089,0.05254868,137.22,137.19,3.18887942]
[1765408640473,6.61014868,137.22,137.19,3.18887942]
[1765408641981,6.5582,137.21,137.19,0.04887942]
[1765408642182,3.34,137.2,137.19,0.04887942]
[1765408643382,0.05254868,137.22,137.19,3.18887942]
[1765408648798,6.61024868,137.22,137.19,3.18887942]
[1765408648979,3.34,137.21,137.19,0.04887942]
[1765408650087,9.8981,137.21,137.19,0.04887942]
[1765408650289,3.34,137.2,137.19,0.04887942]
[1765408650695,3.34,137.2,137.16,3.14]
[1765408651799,3.34,137.2,137.17,0.05252558]
[1765408651800,6.559,137.19,137.17,0.05252558]
[1765408653197,9.899,137.19,137.17,0.05252558]
[1765408654789,9.7985,137.21,137.17,3.13252558]
[1765408655290,9.7985,137.21,137.17,9.69252558]
[1765408655496,9.7985,137.21,137.18,3.08]
[1765408655989,9.7986,137.2,137.17,0.05252558]
[1765408656188,9.7986,137.2,137.17,3.13252558]
[1765408656394,6.5586,137.2,137.17,3.13252558]
[1765408658194,9.7992,137.19,137.17,0.05252558]
[1765408659002,3.24,137.17,137.1,68.04]
[1765408659200,3.24,137.17,137.1,65.04]
[1765408659399,3.24,137.14,137.1,3.08]
[1765408659999,9.84853641,137.13,137.11,0.05463132]
[1765408660403,0.04653641,137.13,137.11,9.69743132]
[1765408660604,0.04653641,137.13,137.12,3.08]
[1765408661795,9.84853641,137.13,137.11,0.05463132]
[1765408662302,3.28653641,137.13,137.11,0.05463132]
[1765408662512,0.04653641,137.13,137.11,3.13463132]
[1765408664904,0.04653641,137.13,137.11,9.69743132]
[1765408665104,0.04653641,137.13,137.12,3.08]
[1765408665809,3.28653641,137.13,137.11,0.05463132]
[1765408666008,3.24,137.11,137.06,3.08]
[1765408666401,9.8032,137.11,137.06,3.08]
[1765408667002,0.04674748,137.1,137.07,3.12922152]
[1765408668001,0.04674748,137.1,137.09,3.08]
[1765408669507,15.22672845,137.16,137.12,3.08]
[1765408669817,8.66415403,137.18,137.12,3.08]
[1765408670108,3.24,137.18,137.12,3.08]
[1765408670601,0.05516021,137.16,137.14,0.04759143]
[1765408670794,0.05516021,137.16,137.14,3.12759143]
[1765408671994,0.05516021,137.16,137.14,9.68889143]
[1765408672609,0.05516021,137.16,137.15,3.08]
[1765408676399,6.5591,137.19,137.16,3.08]
[1765408676605,6.5591,137.19,137.15,6.5608]
[1765408676606,9.7996,137.18,137.15,3.08]
[1765408676805,3.24,137.18,137.14,0.04759143]
[1765408677410,3.28838347,137.17,137.14,0.04759143]
[1765408677613,6.5606,137.16,137.14,0.04759143]
[1765408682618,3.28838347,137.17,137.14,0.04759143]
[1765408683918,9.84838347,137.17,137.14,0.04759143]
[1765408684119,3.17,137.16,137.14,0.04759143]
[1765408688431,9.7305,137.16,137.14,0.04759143]
[1765408688926,3.17,137.15,137.14,0.04759143]
[1765408690530,9.7505,137.16,137.14,0.04759143]
[1765408691531,3.19,137.16,137.14,0.04759143]
[1765408692121,0.04838347,137.17,137.14,3.17759143]
[1765408692323,3.19,137.16,137.14,3.17759143]
[1765408693022,9.7505,137.16,137.14,3.17759143]
[1765408693223,3.19,137.15,137.14,0.04759143]
[1765408693629,9.7505,137.16,137.14,0.04759143]
[1765408695733,9.7509,137.15,137.14,0.04759143]
[1765408696231,3.19,137.14,137.08,3.13]
[1765408696431,5.285054,137.14,137.08,3.13]
[1765408697025,0.04748015,137.12,137.11,3.13]
[1765408697429,8.65320235,137.17,137.12,3.13]
[1765408697625,3.19,137.17,137.12,3.13]
[1765408698329,3.19,137.17,137.13,0.05481464]
[1765408698529,0.05448588,137.16,137.14,9.6913]
[1765408698728,0.05448588,137.16,137.15,3.13]
[1765408703233,3.19,137.23,137.17,3.13]
[1765408703423,5.285054,137.23,137.17,3.13]
[1765408703623,3.19,137.23,137.17,3.13]
[1765408703933,3.19,137.21,137.17,3.13]
[1765408704334,0.05361475,137.2,137.18,0.04797722]
[1765408706033,0.05361475,137.2,137.18,6.60737722]
[1765408706238,0.05361475,137.2,137.18,9.73737722]
[1765408706537,0.05361475,137.2,137.18,3.17797722]
[1765408708027,0.05361475,137.2,137.19,3.13]
[1765408708941,3.19,137.24,137.21,3.13]
[1765408709734,8.651654,137.25,137.16,167.0086]
[1765408709735,3.19,137.23,137.16,6.13]
[1765408709934,3.19,137.19,137.18,0.05545571]
[1765408710729,3.19,137.19,137.13,61.96]
[1765408710936,5.285054,137.14,137.1,3.13]
[1765408711332,5.285054,137.12,137.08,9.6939]
[1765408711533,5.285054,137.12,137.09,3.13]
[1765408711843,3.19,137.19,137.12,3.13]
[1765408712140,0.05451983,137.17,137.15,3.13]
[1765408713027,0.05451983,137.17,137.15,9.6907]
[1765408714444,0.05451983,137.17,137.16,3.13]
[1765408717048,172.95892005,137.26,137.18,3.13]
[1765408717049,2.095054,137.25,137.18,3.13]
[1765408717349,3.3,137.26,137.21,3.13]
[1765408717836,3.3,137.26,137.22,6.5575]
[1765408718041,3.3,137.24,137.22,0.04857838]
[1765408719238,3.35093968,137.25,137.22,0.04857838]
[1765408722939,3.35093968,137.25,137.22,9.73597838]
[1765408723139,0.05093968,137.25,137.22,9.73597838]
[1765408723841,3.35093968,137.25,137.22,9.73597838]
[1765408728243,3.35093968,137.25,137.23,6.5571]
[1765408730256,0.05093968,137.25,137.24,3.13]
[1765408730448,3.35093968,137.25,137.22,3.17857838]
[1765408732156,3.35093968,137.25,137.22,0.04857838]
[1765408733154,3.35093968,137.25,137.22,6.60617838]
[1765408733359,3.35093968,137.25,137.22,9.73617838]
[1765408735756,3.35093968,137.25,137.23,6.5571]
[1765408738150,3.3,137.23,137.22,0.04857838]
[1765408739952,3.35093968,137.25,137.22,3.17857838]
[1765408740258,3.35093968,137.25,137.22,0.04857838]
[1765408740956,0.05093968,137.25,137.22,3.17857838]
[1765408742058,0.05093968,137.25,137.24,9.6866]
[1765408743357,65.24,137.33,137.27,3.13]
[1765408744262,0.05449032,137.31,137.29,0.05182077]
[1765408744659,0.05449032,137.31,137.29,3.21182077]
[1765408744859,0.05449032,137.31,137.29,9.76592077]
[1765408745164,3.10449032,137.31,137.29,0.05182077]
[1765408745360,5.14145367,137.3,137.29,0.05182077]
[1765408746262,5.14145367,137.3,137.21,2.09145367]
[1765408746263,3.05,137.29,137.2,3.16]
[1765408746472,3.05,137.24,137.2,3.16]
[1765408747168,0.04614254,137.23,137.21,3.20757322]
[1765408747959,0.04614254,137.23,137.21,9.76557322]
[1765408751460,0.04614254,137.23,137.22,3.21]
[1765408752475,3.26,137.27,137.23,9.767]
[1765408753570,3.30911101,137.26,137.23,9.767]
[1765408753874,3.30911101,137.26,137.23,9.81653517]
[1765408754765,3.26,137.25,137.19,3.21]
[1765408754962,3.26,137.22,137.13,3.21]
[1765408755162,3.26,137.19,137.1,3.21]
[1765408755461,9.8195,137.18,137.11,3.21]
[1765408755868,0.04780704,137.16,137.13,9.8238851]
[1765408756356,3.30780704,137.16,137.13,0.0520851]
[1765408756557,3.26,137.15,137.07,3.21]
[1765408757069,3.26,137.15,137.08,3.21]
[1765408757665,3.26,137.15,137.11,3.21]
[1765408757666,0.05346376,137.13,137.11,3.21]
[1765408758772,0.05346376,137.13,137.1,3.25946921]
[1765408758977,3.26,137.2,137.11,3.21]
[1765408759469,6.5594,137.19,137.13,3.21]
[1765408759967,0.05522735,137.17,137.15,0.05410661]
[1765408760171,3.31522735,137.17,137.15,0.05410661]
[1765408767177,0.05522735,137.17,137.15,0.05410661]
[1765408768284,3.31522735,137.17,137.15,0.05410661]
[1765408768484,105.3388,137.13,137.07,3.21]
[1765408768675,3.26,137.08,137.03,3.21]
[1765408769482,0.05375827,137.07,137.04,3.26512276]
[1765408769673,0.0482391,137.07,137.04,3.2637593]
[1765408770980,65.22,137.13,137.07,3.21]
[1765408771177,3.26,137.12,137.07,3.21]
[1765408771482,3.26,137.12,137.04,3.21]
[1765408771983,0.0523995,137.09,137.07,0.05381696]
[1765408772485,3.3123995,137.09,137.07,0.05381696]
[1765408772883,0.0523995,137.09,137.07,0.05381696]
[1765408775486,3.1523995,137.09,137.07,0.05381696]
[1765408776085,9.7163995,137.09,137.07,0.05381696]
[1765408776387,3.1,137.08,137.07,0.05381696]
[1765408778488,6.6163995,137.09,137.07,0.05381696]
[1765408778888,0.0523995,137.09,137.07,0.05381696]
[1765408779287,3.1523995,137.09,137.07,0.05381696]
[1765408781096,3.1,137.08,137.07,0.05381696]
[1765408785706,6.6162995,137.09,137.07,0.05381696]
[1765408786701,9.7162995,137.09,137.07,0.05381696]
[1765408787003,3.1,137.08,137.07,0.05381696]
[1765408788701,0.0523995,137.09,137.07,3.18381696]
[1765408790908,0.0523995,137.09,137.07,9.74851696]
[1765408791104,0.0523995,137.09,137.08,3.13]
[1765408791612,0.0523995,137.09,137.08,9.6943]
[1765408792411,3.1,137.13,137.1,3.13]
[1765408793516,3.14932945,137.13,137.1,3.18180938]
[1765408796515,0.04932945,137.13,137.1,3.18180938]
[1765408797510,0.04932945,137.13,137.11,3.13]
[1765408801310,0.04932945,137.13,137.11,9.6928]
[1765408801514,0.04932945,137.13,137.12,3.13]
[1765408801720,3.1,137.19,137.12,3.13]
[1765408801916,15.12556957,137.18,137.14,3.13]
[1765408802219,9.6599,137.18,137.14,3.13]
[1765408802718,9.70847213,137.17,137.15,0.05545754]
[1765408802918,3.1,137.16,137.15,0.05545754]
[1765408803319,0.04847213,137.17,137.15,3.18545754]
[1765408804720,0.04847213,137.17,137.15,9.74635754]
[1765408804908,0.04847213,137.17,137.16,3.07]
[1765408805706,3.40847213,137.17,137.15,0.05545754]
[1765408806710,0.04847213,137.17,137.15,3.12545754]
[1765408806912,3.40847213,137.17,137.15,0.05545754]
[1765408807726,0.04847213,137.17,137.15,3.12545754]
[1765408811525,3.03,137.23,137.15,3.12545754]
[1765408811715,3.03,137.23,137.15,3.07]
[1765408812426,0.04063025,137.2,137.18,3.22976038]
[1765408812815,0.04063025,137.2,137.18,9.78926038]
[1765408813015,0.04063025,137.2,137.19,3.18]
[1765408814723,0.04063025,137.2,137.19,9.739]
[1765408818122,2.09308588,137.23,137.2,6.5582]
[1765408818426,2.09308588,137.23,137.21,3.18]
[1765408819323,3.03,137.22,137.18,0.04976038]
[1765408819623,2.09308588,137.21,137.18,3.22976038]
[1765408819822,2.09308588,137.23,137.21,3.18]
[1765408820028,2.09308588,137.25,137.21,3.23377347]
[1765408820221,2.09308588,137.27,137.22,3.18]
[1765408820734,3.03,137.26,137.22,9.7371]
[1765408820933,3.03,137.26,137.22,3.18]
[1765408821524,9.5857,137.26,137.22,3.18]
[1765408822433,2.09308588,137.25,137.22,3.18]
[1765408825236,6.5557,137.26,137.23,3.18]
[1765408825937,2.09308588,137.27,137.23,3.18]
[1765408826139,5.12308588,137.27,137.23,3.18]
[1765408826635,3.03,137.26,137.23,3.18]
[1765408827733,9.5857,137.26,137.23,3.18]
[1765408827934,3.03,137.24,137.21,3.23377347]
[1765408828132,3.03,137.24,137.21,3.22597405]
[1765408828822,3.03,137.22,137.21,0.04597405]
[1765408830123,2.09308588,137.24,137.21,3.22597405]
[1765408830632,2.09308588,137.24,137.22,3.18]
[1765408830828,9.5861,137.26,137.22,3.18]
[1765408831022,3.03,137.27,137.23,3.18]
[1765408831227,3.03,137.26,137.24,0.05526401]
[1765408832126,9.5857,137.26,137.24,0.05526401]
[1765408834336,2.09308588,137.27,137.24,3.35526401]
[1765408834532,2.09308588,137.28,137.24,3.35526401]
[1765408834742,3.28,137.25,137.24,0.05526401]
[1765408838355,11.92918588,137.26,137.24,0.05526401]
[1765408838850,3.28,137.25,137.24,0.05526401]
[1765408839050,3.28,137.27,137.24,3.35526401]
[1765408839650,3.28,137.26,137.24,0.05526401]
[1765408840149,9.8353,137.27,137.24,3.35526401]
[1765408841652,11.92758588,137.29,137.24,3.35526401]
[1765408841845,3.28,137.28,137.24,3.35526401]
[1765408842848,3.28,137.28,137.25,6.5561]
[1765408843050,3.28,137.28,137.25,9.8561]
[1765408844753,3.28,137.29,137.26,9.8556]
[1765408844955,2.09308588,137.28,137.26,6.5556]
[1765408845162,5.37308588,137.28,137.26,6.5556]
[1765408845344,3.28,137.27,137.24,0.05526401]
[1765408845546,5.37308588,137.26,137.24,0.05526401]
[1765408846059,5.37308588,137.26,137.24,6.61186401]
[1765408847959,6.5548,137.28,137.24,9.91186401]
[1765408848154,3.28,137.29,137.26,3.3]
[1765408848467,5.37308588,137.28,137.26,0.05481274]
[1765408849063,3.28,137.27,137.26,0.05481274]
[1765408850670,3.28,137.27,137.21,3.3]
[1765408850856,3.28,137.23,137.2,3.3]
[1765408851167,3.28,137.23,137.2,9.8584]
[1765408851564,3.33236015,137.23,137.2,9.90926663]
[1765408852061,3.28,137.22,137.2,0.05086663]
[1765408852969,9.88946015,137.23,137.2,3.35086663]
[1765408854857,0.05236015,137.23,137.21,3.3]
[1765408857260,3.33236015,137.23,137.2,6.60936663]
[1765408857667,3.33236015,137.23,137.2,9.90936663]
[1765408859067,3.28,137.19,137.14,3.3]
[1765408859269,5.37308588,137.16,137.11,3.3]
[1765408859970,0.0483459,137.15,137.12,9.90843733]
[1765408860272,0.0483459,137.15,137.13,3.3]
[1765408861866,0.0483459,137.15,137.13,9.8616]
[1765408862368,0.0483459,137.15,137.14,3.3]
[1765408869177,0.0483459,137.15,137.13,3.06]
[1765408870582,0.0483459,137.15,137.13,9.6218]
[1765408870783,0.0483459,137.15,137.14,3.19]
[1765408875985,0.0483459,137.15,137.14,9.7514]
[1765408876377,3.1383459,137.15,137.13,3.19]
[1765408877284,0.0483459,137.15,137.13,3.19]
[1765408878888,0.0483459,137.15,137.14,3.19]
[1765408879878,0.0483459,137.15,137.14,9.7514]
[1765408880588,0.0483459,137.15,137.14,3.19]
[1765408882183,3.1383459,137.15,137.12,0.04613733]
[1765408882893,3.1383459,137.15,137.12,3.23613733]
[1765408883289,3.1383459,137.15,137.12,9.79843733]
[1765408883489,3.1383459,137.15,137.13,3.19]
[1765408884386,0.0483459,137.15,137.13,3.19]
[1765408884683,3.09,137.2,137.13,3.19]
[1765408884885,3.09,137.19,137.13,3.19]
[1765408885389,6.36313608,137.22,137.16,3.19]
[1765408885587,0.05246836,137.2,137.18,0.05166866]
[1765408885789,3.14246836,137.2,137.18,0.05166866]
[1765408886381,0.05246836,137.2,137.18,3.24166866]
[1765408887383,0.05246836,137.2,137.18,9.80106866]
[1765408887594,3.09,137.25,137.19,3.19]
[1765408887984,3.09,137.28,137.22,3.19]
[1765408888299,3.09,137.34,137.26,3.19]
[1765408888679,3.09,137.34,137.29,3.2405008]
[1765408889079,3.09,137.33,137.29,3.2405008]
[1765408889786,3.09,137.32,137.29,3.2405008]
[1765408890894,9.643,137.32,137.29,3.2405008]
[1765408891590,3.09,137.29,137.23,9.747]
[1765408891894,3.09,137.27,137.2,3.19]
[1765408892085,3.09,137.26,137.2,3.19]
[1765408892281,3.09,137.25,137.2,3.19]
[1765408892485,3.09,137.25,137.17,3.19]
[1765408892684,0.05472075,137.22,137.2,0.05309891]
[1765408894089,3.16472075,137.22,137.2,0.05309891]
[1765408900489,9.72242075,137.22,137.2,0.05309891]
[1765408900697,3.11,137.21,137.2,0.05309891]
[1765408900896,3.11,137.21,137.14,9.8511]
[1765408901906,3.15989362,137.19,137.16,0.05240797]
[1765408905106,9.71899362,137.19,137.16,0.05240797]
[1765408906808,3.11,137.18,137.16,0.05240797]
[1765408913311,0.04989362,137.19,137.16,9.90270797]
[1765408913511,0.04989362,137.19,137.16,3.34240797]
[1765408914912,0.04989362,137.19,137.17,9.8499]
[1765408915122,0.04989362,137.19,137.18,3.29]
[1765408917916,0.04989362,137.19,137.18,9.8495]
[1765408918812,9.6671,137.24,137.21,3.29]
[1765408919213,3.11,137.23,137.21,3.29]
[1765408919519,3.11,137.21,137.14,3.29]
[1765408919718,6.38105265,137.2,137.14,3.29]
[1765408919911,3.15831458,137.19,137.16,3.3444359]
[1765408920318,0.04831458,137.19,137.16,3.3444359]
[1765408920910,0.04831458,137.19,137.18,9.8495]
[1765408929222,9.7771,137.24,137.21,3.26]
[1765408929429,3.22,137.23,137.18,3.26]
[1765408929925,3.22,137.23,137.18,9.8195]